bitfinex/quotes_SOLUSD_20241231
["timestamp","ask_amount","ask_price","bid_price","bid_amount"]
[1735669741381,8.05718519,195.6,195.55,12.7843]
[1735669741658,8.05718519,195.61,195.56,20.0]
[1735669742561,8.05718519,195.61,195.53,14.48648519]
[1735669742732,8.05718519,195.61,195.56,20.0]
[1735669744263,8.05718519,195.6,195.56,20.0]
[1735669744639,8.05718519,195.61,195.56,20.0]
[1735669745867,8.05718519,195.62,195.56,20.0]
[1735669747241,8.05718519,195.61,195.56,20.0]
[1735669747942,8.05718519,195.62,195.56,20.0]
[1735669751273,8.05718519,195.62,195.54,12.7847]
[1735669753180,8.05718519,195.62,195.55,8.05718519]
[1735669754889,8.05718519,195.62,195.54,12.7847]
[1735669755288,8.05718519,195.61,195.54,20.84188519]
[1735669757181,8.05718519,195.58,195.53,6.4293]
[1735669757378,8.05718519,195.58,195.54,20.0]
[1735669757558,8.05718519,195.58,195.51,22.48428519]
[1735669757758,8.05718519,195.56,195.48,6.1312]
[1735669757960,8.05718519,195.55,195.48,18.9199]
[1735669758393,8.05718519,195.53,195.46,1.5425]
[1735669758573,8.05718519,195.53,195.45,12.7909]
[1735669758574,8.05718519,195.52,195.45,20.84808519]
[1735669758982,8.05718519,195.53,195.45,20.84808519]
[1735669759371,8.05718519,195.53,195.46,8.05718519]
[1735669760185,8.05718519,195.52,195.45,20.84808519]
[1735669761599,8.05718519,195.53,195.45,20.84808519]
[1735669762297,8.05718519,195.55,195.47,20.84678519]
[1735669762798,8.05718519,195.56,195.49,8.05718519]
[1735669764193,8.05718519,195.58,195.52,20.0]
[1735669764379,8.05718519,195.59,195.52,8.05718519]
[1735669764692,1.6663,195.62,195.51,8.05718519]
[1735669764693,8.05718519,195.58,195.51,8.05718519]
[1735669765388,8.05718519,195.58,195.51,20.84378519]
[1735669765781,8.05718519,195.59,195.51,20.84378519]
[1735669767074,8.05718519,195.58,195.51,20.84378519]
[1735669767276,8.05718519,195.57,195.51,12.7866]
[1735669767784,8.05718519,195.59,195.51,20.84378519]
[1735669767987,8.05718519,195.59,195.53,12.7857]
[1735669768796,8.05718519,195.6,195.53,20.84288519]
[1735669769094,8.05718519,195.59,195.53,12.7857]
[1735669769472,8.05718519,195.6,195.53,12.7857]
[1735669769672,1.6663,195.62,195.53,20.84288519]
[1735669769886,8.05718519,195.6,195.53,20.84288519]
[1735669770074,8.05718519,195.6,195.53,12.7857]
[1735669770275,8.05718519,195.58,195.51,14.10198519]
[1735669772705,8.05718519,195.6,195.51,14.10198519]
[1735669773510,8.05718519,195.58,195.5,44.62146919]
[1735669773693,8.05718519,195.58,195.5,20.84458519]
[1735669774285,8.05718519,195.58,195.5,12.7874]
[1735669775303,8.05718519,195.58,195.51,8.05718519]
[1735669775977,1.6663,195.62,195.52,12.7864]
[1735669776302,8.05718519,195.6,195.52,20.84358519]
[1735669776506,8.05718519,195.6,195.53,8.05718519]
[1735669776799,8.05718519,195.61,195.53,8.05718519]
[1735669777808,8.05718519,195.61,195.53,14.10198519]
[1735669778602,8.05718519,195.64,195.57,20.0]
[1735669778804,8.05718519,195.64,195.57,28.05718519]
[1735669779013,8.05718519,195.64,195.57,29.59688519]
[1735669779222,8.05718519,195.65,195.58,8.05718519]
[1735669780210,8.05718519,195.65,195.57,34.3222]
[1735669780211,8.05718519,195.64,195.57,42.37938519]
[1735669780714,8.05718519,195.64,195.57,34.3222]
[1735669781085,8.05718519,195.65,195.58,8.05718519]
[1735669781420,8.05718519,195.64,195.57,42.37938519]
[1735669783710,8.05718519,195.65,195.58,8.05718519]
[1735669784920,8.05718519,195.66,195.58,8.05718519]
[1735669785098,8.05718519,195.68,195.6,8.05718519]
[1735669786120,8.05718519,195.68,195.61,14.72188519]
[1735669786316,8.05718519,195.67,195.61,6.6647]
[1735669786825,8.05718519,195.68,195.61,6.6647]
[1735669787526,8.05718519,195.68,195.61,19.4448]
[1735669789095,8.05718519,195.66,195.61,12.7801]
[1735669789296,9.06153265,195.72,195.58,6.6647]
[1735669789297,8.05718519,195.65,195.58,6.6647]
[1735669789517,8.05718519,195.65,195.58,14.72188519]
[1735669789819,8.05718519,195.67,195.59,20.83898519]
[1735669789994,8.05718519,195.66,195.59,20.83898519]
[1735669790402,8.05718519,195.65,195.59,12.7818]
[1735669791916,8.05718519,195.66,195.59,20.83898519]
[1735669792906,9.06153265,195.72,195.59,20.83898519]
[1735669793107,8.05718519,195.66,195.59,20.83898519]
[1735669794222,8.05718519,195.66,195.59,12.7818]
[1735669795306,8.05718519,195.64,195.58,6.6647]
[1735669795622,8.05718519,195.63,195.58,6.6647]
[1735669795819,8.05718519,195.64,195.58,6.6647]
[1735669799759,32.22874076,195.7,195.58,19.4468]
[1735669800035,8.05718519,195.67,195.59,8.05718519]
[1735669800198,8.05718519,195.67,195.6,8.05718519]
[1735669800402,9.06153265,195.72,195.61,8.05718519]
[1735669800614,8.05718519,195.68,195.61,20.0]
[1735669800833,8.05718519,195.68,195.6,8.05718519]
[1735669801131,8.05718519,195.66,195.59,8.05718519]
[1735669801317,8.05718519,195.64,195.58,19.4468]
[1735669801508,8.05718519,195.61,195.55,12.7841]
[1735669803038,6.2142,195.68,195.56,8.05718519]
[1735669803241,8.05718519,195.63,195.56,8.05718519]
[1735669803444,8.05718519,195.61,195.55,12.7841]
[1735669804009,23.776884,195.68,195.53,8.05718519]
[1735669804010,8.05718519,195.6,195.53,8.05718519]
[1735669804336,8.05718519,195.59,195.52,28.93828519]
[1735669804530,36.552784,195.68,195.52,20.8811]
[1735669804531,8.05718519,195.6,195.52,20.8811]
[1735669804725,8.05718519,195.61,195.54,8.05718519]
[1735669805239,8.05718519,195.62,195.54,8.05718519]
[1735669805823,8.05718519,195.63,195.55,8.05718519]
[1735669806010,8.05718519,195.66,195.58,8.05718519]
[1735669806239,8.05718519,195.66,195.54,12.7847]
[1735669806240,8.05718519,195.64,195.57,8.05718519]
[1735669807123,8.05718519,195.65,195.57,8.05718519]
[1735669807321,8.05718519,195.69,195.61,8.05718519]
[1735669807825,8.05718519,195.68,195.61,8.05718519]
[1735669809622,8.05718519,195.68,195.6,28.93308519]
[1735669810341,8.05718519,195.68,195.61,8.05718519]
[1735669810751,8.05718519,195.67,195.6,28.93308519]
[1735669810941,8.05718519,195.66,195.6,8.0949]
[1735669811460,23.776884,195.71,195.6,8.0949]
[1735669811461,8.05718519,195.65,195.6,8.0949]
[1735669811640,8.05718519,195.66,195.6,8.0949]
[1735669812746,8.05718519,195.63,195.56,8.05718519]
[1735669812950,8.05718519,195.62,195.55,8.05718519]
[1735669813153,8.05718519,195.6,195.53,15.68318519]
[1735669813325,8.05718519,195.61,195.53,15.68318519]
[1735669813520,8.05718519,195.62,195.55,8.05718519]
[1735669813725,8.05718519,195.65,195.57,8.05718519]
[1735669813956,8.05718519,195.66,195.58,8.05718519]
[1735669814146,8.05718519,195.66,195.57,20.0]
[1735669814351,8.05718519,195.64,195.57,20.0]
[1735669815142,8.05718519,195.65,195.58,8.05718519]
[1735669815320,17.09106764,195.72,195.59,8.05718519]
[1735669815321,8.05718519,195.67,195.59,8.05718519]
[1735669815526,8.05718519,195.67,195.6,8.05718519]
[1735669816156,9.06153265,195.72,195.6,8.05718519]
[1735669816483,8.05718519,195.69,195.62,8.05718519]
[1735669816665,8.05718519,195.68,195.61,35.68318519]
[1735669817153,8.05718519,195.68,195.61,27.626]
[1735669817344,8.05718519,195.67,195.61,27.626]
[1735669819459,8.05718519,195.68,195.61,27.626]
[1735669819663,7.45313265,195.72,195.63,8.05718519]
[1735669819842,8.05718519,195.7,195.63,8.05718519]
[1735669820547,8.02953499,195.75,195.65,8.05718519]
[1735669820741,8.05718519,195.72,195.65,8.05718519]
[1735669820944,8.05718519,195.71,195.64,8.05718519]
[1735669821161,8.05718519,195.72,195.65,8.05718519]
[1735669821482,8.05718519,195.74,195.65,23.776884]
[1735669821770,8.05718519,195.75,195.67,8.05718519]
[1735669822080,7.45313265,195.77,195.66,8.05718519]
[1735669822081,8.05718519,195.73,195.66,8.05718519]
[1735669822364,8.05718519,195.75,195.67,8.05718519]
[1735669822569,8.05718519,195.76,195.69,8.05718519]
[1735669822781,8.05718519,195.75,195.69,7.626]
[1735669823239,8.05718519,195.76,195.69,15.68318519]
[1735669823442,8.05718519,195.75,195.69,7.626]
[1735669823669,8.05718519,195.73,195.69,7.626]
[1735669824053,20.0,195.78,195.69,7.626]
[1735669824257,8.05718519,195.75,195.69,7.626]
[1735669824471,8.05718519,195.74,195.69,7.626]
[1735669824673,8.05718519,195.73,195.69,7.626]
[1735669824976,8.05718519,195.72,195.65,8.05718519]
[1735669825477,8.05718519,195.73,195.66,8.05718519]
[1735669825779,8.05718519,195.72,195.64,28.46148519]
[1735669826650,8.05718519,195.72,195.65,8.05718519]
[1735669827878,8.05718519,195.73,195.66,8.05718519]
[1735669828376,8.05718519,195.72,195.65,8.05718519]
[1735669828576,8.05718519,195.72,195.64,28.46148519]
[1735669828971,8.05718519,195.72,195.65,8.05718519]
[1735669829376,8.05718519,195.73,195.66,8.05718519]
[1735669829765,8.05718519,195.72,195.65,8.05718519]
[1735669831506,27.45313265,195.78,195.68,8.05718519]
[1735669831686,8.05718519,195.76,195.68,8.05718519]
[1735669832151,8.05718519,195.74,195.67,8.05718519]
[1735669832678,27.45313265,195.78,195.65,8.05718519]
[1735669832679,8.05718519,195.73,195.65,8.05718519]
[1735669832893,8.05718519,195.69,195.64,7.626]
[1735669833386,8.05718519,195.65,195.59,8.235]
[1735669833593,20.0,195.72,195.59,16.29218519]
[1735669834090,8.05718519,195.71,195.64,8.05718519]
[1735669834272,8.05718519,195.71,195.63,8.05718519]
[1735669834477,8.05718519,195.7,195.62,28.05718519]
[1735669834781,8.05718519,195.7,195.63,8.05718519]
[1735669835162,1.664,195.74,195.62,20.0]
[1735669835163,8.05718519,195.68,195.62,20.0]
[1735669835369,8.05718519,195.69,195.62,28.05718519]
[1735669835973,8.05718519,195.68,195.59,8.235]
[1735669836168,8.05718519,195.67,195.6,8.05718519]
[1735669836689,8.05718519,195.66,195.59,16.29218519]
[1735669836893,8.05718519,195.67,195.6,8.05718519]
[1735669837895,8.05718519,195.68,195.6,8.05718519]
[1735669838673,8.05718519,195.68,195.61,8.05718519]
[1735669839072,8.05718519,195.69,195.62,8.05718519]
[1735669839289,8.05718519,195.7,195.62,8.05718519]
[1735669840491,8.05718519,195.69,195.62,8.05718519]
[1735669843087,8.05718519,195.68,195.61,8.05718519]
[1735669843266,8.05718519,195.68,195.6,8.05718519]
[1735669843466,8.05718519,195.67,195.59,16.29218519]
[1735669844193,8.05718519,195.68,195.6,8.05718519]
[1735669844688,23.776884,195.72,195.6,8.05718519]
[1735669844901,8.05718519,195.68,195.6,8.05718519]
[1735669846484,8.05718519,195.66,195.59,8.235]
[1735669847392,8.05718519,195.65,195.59,8.235]
[1735669848293,8.05718519,195.64,195.59,6.634]
[1735669848617,8.05718519,195.64,195.55,8.05718519]
[1735669849016,8.05718519,195.63,195.55,8.05718519]
[1735669849677,8.05718519,195.64,195.56,8.05718519]
[1735669850165,8.05718519,195.63,195.55,8.05718519]
[1735669850815,8.05718519,195.64,195.56,8.05718519]
[1735669851686,12.7759,195.69,195.57,28.05718519]
[1735669851886,8.05718519,195.66,195.59,8.05718519]
[1735669852301,8.05718519,195.67,195.59,8.05718519]
[1735669852582,8.05718519,195.7,195.62,8.05718519]
[1735669852798,8.05718519,195.7,195.63,8.05718519]
[1735669853309,8.05718519,195.71,195.64,8.05718519]
[1735669853891,8.05718519,195.71,195.63,8.05718519]
[1735669854410,7.45313265,195.72,195.63,8.05718519]
[1735669854704,8.05718519,195.71,195.63,8.05718519]
[1735669854915,8.05718519,195.7,195.62,8.05718519]
[1735669855885,8.05718519,195.7,195.63,8.05718519]
[1735669856204,8.05718519,195.7,195.62,8.05718519]
[1735669856604,8.05718519,195.72,195.64,8.05718519]
[1735669856809,8.05718519,195.74,195.67,8.05718519]
[1735669857111,8.02953499,195.78,195.69,8.05718519]
[1735669857282,8.05718519,195.76,195.68,8.05718519]
[1735669857909,8.05718519,195.75,195.68,8.05718519]
[1735669858530,8.05718519,195.78,195.7,8.05718519]
[1735669859032,8.05718519,195.79,195.72,8.05718519]
[1735669859220,8.05718519,195.81,195.74,8.05718519]
[1735669859417,8.05718519,195.8,195.73,8.05718519]
[1735669859817,17.05326764,195.84,195.76,20.0]
[1735669860133,8.05718519,195.81,195.74,8.05718519]
[1735669860336,8.05718519,195.8,195.71,12.7737]
[1735669860522,8.05718519,195.81,195.74,8.05718519]
[1735669861136,8.05718519,195.83,195.76,8.05718519]
[1735669862721,8.05718519,195.84,195.77,8.05718519]
[1735669863031,8.05718519,195.85,195.78,8.05718519]
[1735669863225,1.5706,195.88,195.8,8.05718519]
[1735669863432,8.05718519,195.87,195.8,8.05718519]
[1735669864835,8.05718519,195.86,195.79,8.05718519]
[1735669865139,8.05718519,195.84,195.79,20.0]
[1735669865448,8.05718519,195.86,195.79,28.05718519]
[1735669865730,8.05718519,195.85,195.79,28.05718519]
[1735669866233,8.05718519,195.86,195.79,28.05718519]
[1735669866408,8.05718519,195.87,195.8,8.05718519]
[1735669866831,8.05718519,195.86,195.79,28.05718519]
[1735669867238,8.05718519,195.84,195.79,20.0]
[1735669867837,8.05718519,195.85,195.79,20.0]
[1735669868218,8.05718519,195.86,195.79,28.05718519]
[1735669868919,8.05718519,195.87,195.79,28.05718519]
[1735669869236,8.05718519,195.87,195.8,8.05718519]
[1735669869737,8.05718519,195.87,195.79,28.05718519]
[1735669870939,8.05718519,195.87,195.8,8.05718519]
[1735669871250,8.05718519,195.86,195.76,8.1714]
[1735669871544,8.05718519,195.86,195.79,8.05718519]
[1735669871948,20.0,195.88,195.79,8.05718519]
[1735669872118,8.05718519,195.87,195.8,8.05718519]
[1735669873319,8.05718519,195.87,195.81,8.05718519]
[1735669873525,8.05718519,195.87,195.8,8.05718519]
[1735669873757,8.05718519,195.88,195.81,8.05718519]
[1735669874039,8.05718519,195.87,195.8,28.05718519]
[1735669874240,8.05718519,195.86,195.8,20.0]
[1735669874441,8.05718519,195.87,195.8,28.05718519]
[1735669875543,8.05718519,195.86,195.8,20.0]
[1735669876145,20.0,195.91,195.8,20.0]
[1735669876457,8.05718519,195.87,195.8,28.05718519]
[1735669876622,14.3313,195.92,195.79,8.05718519]
[1735669876623,8.05718519,195.86,195.79,8.05718519]
[1735669876828,14.3313,195.92,195.76,20.9415]
[1735669876829,8.05718519,195.85,195.78,8.05718519]
[1735669877039,8.05718519,195.81,195.76,8.1714]
[1735669877246,8.05718519,195.8,195.73,8.05718519]
[1735669877579,8.05718519,195.82,195.75,8.05718519]
[1735669877727,8.05718519,195.83,195.76,8.05718519]
[1735669878045,8.05718519,195.82,195.75,8.05718519]
[1735669878241,8.05718519,195.83,195.76,8.05718519]
[1735669878748,8.05718519,195.84,195.76,8.05718519]
[1735669879246,8.05718519,195.83,195.76,8.05718519]
[1735669879437,8.05718519,195.86,195.78,8.05718519]
[1735669879640,12.762,195.9,195.78,8.05718519]
[1735669879641,8.05718519,195.85,195.78,8.05718519]
[1735669879837,1.5706,195.92,195.78,8.05718519]
[1735669880045,1.5706,195.92,195.79,8.05718519]
[1735669880239,8.05718519,195.87,195.8,16.12278519]
[1735669880428,8.05718519,195.88,195.81,8.05718519]
[1735669880950,1.5568,195.96,195.84,8.05718519]
[1735669881151,8.05718519,195.9,195.84,20.0]
[1735669881450,8.05718519,195.92,195.85,8.05718519]
[1735669881832,1.5568,195.96,195.85,8.05718519]
[1735669882048,8.05718519,195.92,195.85,8.05718519]
[1735669882260,8.05718519,195.94,195.87,8.05718519]
[1735669882429,8.05718519,195.95,195.87,8.05718519]
[1735669882631,8.05718519,195.96,195.89,8.05718519]
[1735669883052,8.05718519,195.95,195.88,8.05718519]
[1735669883651,20.55769814,196.0,195.89,8.05718519]
[1735669883838,8.05718519,195.96,195.89,8.05718519]
[1735669885058,8.05718519,195.97,195.9,8.05718519]
[1735669885367,1.5568,196.01,195.88,8.0656]
[1735669885666,1.40293948,196.02,195.94,8.05718519]
[1735669885667,8.05718519,196.02,195.94,8.05718519]
[1735669886081,8.05718519,196.02,195.95,8.05718519]
[1735669886375,12.52880967,196.05,195.98,12.52880967]
[1735669886676,12.52880967,196.06,195.99,12.52880967]
[1735669886971,12.52880967,196.05,195.98,12.52880967]
[1735669887165,12.52880967,196.04,195.97,12.52880967]
[1735669888155,12.52880967,196.03,195.96,20.73220967]
[1735669889352,12.52880967,196.05,195.98,12.52880967]
[1735669889571,12.52880967,196.05,195.96,8.2034]
[1735669889572,1.5459,196.18,196.03,12.52880967]
[1735669889737,12.52880967,196.11,196.03,12.52880967]
[1735669890058,12.52880967,196.12,196.04,12.52880967]
[1735669890648,12.52880967,196.12,196.05,12.52880967]
[1735669891055,12.52880967,196.11,196.03,12.52880967]
[1735669891357,12.52880967,196.09,196.01,32.52880967]
[1735669891589,12.52880967,196.08,196.01,32.52880967]
[1735669892244,12.52880967,196.05,195.98,12.52880967]
[1735669892554,12.52880967,196.02,195.96,8.2034]
[1735669892968,12.52880967,196.01,195.96,8.2034]
[1735669893673,12.52880967,195.99,195.92,12.52880967]
[1735669893836,12.52880967,195.98,195.91,20.73220967]
[1735669894342,12.52880967,195.97,195.91,8.2034]
[1735669894965,12.52880967,195.96,195.91,6.5859]
[1735669895135,12.52880967,195.97,195.91,6.5859]
[1735669895557,12.52880967,195.98,195.91,19.11470967]
[1735669896063,12.52880967,195.99,195.92,12.52880967]
[1735669896563,12.7505,196.08,195.94,12.52880967]
[1735669896875,12.52880967,196.03,195.96,12.52880967]
[1735669897076,12.52880967,196.02,195.95,32.52880967]
[1735669897269,12.52880967,196.01,195.95,20.0]
[1735669897574,12.52880967,196.0,195.93,12.52880967]
[1735669897782,12.52880967,195.99,195.92,12.52880967]
[1735669898580,12.52880967,195.97,195.91,6.5859]
[1735669898967,12.52880967,195.98,195.91,6.5859]
[1735669899375,12.52880967,195.97,195.91,6.5859]
[1735669899561,12.52880967,195.98,195.91,6.5859]
[1735669899883,12.52880967,195.97,195.91,6.5859]
[1735669900885,12.52880967,195.98,195.91,6.5859]
[1735669901397,12.52880967,195.95,195.87,14.14630967]
[1735669901563,12.52880967,195.93,195.87,1.6175]
[1735669901758,1.5409,195.99,195.87,1.6175]
[1735669901759,12.52880967,195.92,195.87,1.6175]
[1735669901958,12.52880967,195.94,195.87,14.14630967]
[1735669903982,12.52880967,195.95,195.88,12.52880967]
[1735669904193,12.52880967,195.96,195.89,12.52880967]
[1735669904680,14.2941,196.03,195.91,32.52880967]
[1735669904886,5.0,196.06,195.88,23.776884]
[1735669904887,12.52880967,196.02,195.94,12.52880967]
[1735669905065,12.52880967,196.01,195.94,12.52880967]
[1735669907987,12.52880967,196.0,195.93,12.52880967]
[1735669908397,12.52880967,196.01,195.94,12.52880967]
[1735669908702,12.52880967,195.99,195.92,12.52880967]
[1735669908990,12.52880967,195.97,195.89,12.52880967]
[1735669909283,12.52880967,195.95,195.87,1.6175]
[1735669909489,12.52880967,195.94,195.87,14.14630967]
[1735669910269,12.52880967,195.95,195.88,12.52880967]
[1735669911219,12.52880967,195.96,195.89,12.52880967]
[1735669914389,14.06970967,195.98,195.9,12.52880967]
[1735669914593,12.52880967,195.99,195.92,12.52880967]
[1735669914772,14.06970967,196.03,195.96,12.52880967]
[1735669914975,12.7512,196.06,195.96,12.52880967]
[1735669914976,12.52880967,196.04,195.96,12.52880967]
[1735669915181,12.52880967,196.04,195.97,12.52880967]
[1735669915394,12.52880967,196.05,195.98,12.52880967]
[1735669916499,12.52880967,196.04,195.97,12.52880967]
[1735669916901,12.52880967,196.05,195.98,12.52880967]
[1735669917302,12.52880967,196.05,195.97,12.52880967]
[1735669918002,12.52880967,196.04,195.97,12.52880967]
[1735669919304,12.52880967,196.05,195.98,12.52880967]
[1735669920297,1.6085,196.15,196.04,12.52880967]
[1735669920497,12.52880967,196.14,196.07,12.52880967]
[1735669921097,14.13730967,196.15,196.07,12.52880967]
[1735669921403,12.52880967,196.13,196.05,12.52880967]
[1735669921632,12.52880967,196.12,196.05,12.52880967]
[1735669922094,12.52880967,196.13,196.05,12.52880967]
[1735669922489,12.52880967,196.07,196.0,12.52880967]
[1735669922809,12.52880967,196.06,195.99,14.12150967]
[1735669923110,23.776884,196.14,195.98,12.52880967]
[1735669923111,12.52880967,196.05,195.98,12.52880967]
[1735669923291,12.52880967,196.07,195.99,12.52880967]
[1735669923491,12.52880967,196.05,195.98,12.52880967]
[1735669924990,12.52880967,196.04,195.97,12.52880967]
[1735669925507,12.52880967,196.05,195.98,12.52880967]
[1735669926809,12.52880967,196.1,195.97,12.52880967]
[1735669926810,12.52880967,196.04,195.97,12.52880967]
[1735669927114,12.52880967,196.01,195.95,6.2169]
[1735669927287,12.52880967,196.02,195.95,18.74570967]
[1735669928505,12.52880967,196.01,195.94,32.52880967]
[1735669929124,12.52880967,196.01,195.94,20.0]
[1735669929315,12.52880967,196.0,195.93,12.52880967]
[1735669929990,1.6085,196.06,195.97,12.52880967]
[1735669930187,12.52880967,196.07,196.0,12.52880967]
[1735669930415,12.7496,196.09,196.01,12.52880967]
[1735669930603,12.52880967,196.08,196.01,12.52880967]
[1735669930794,12.52880967,196.08,196.0,12.52880967]
[1735669930991,12.90805141,196.15,196.0,12.52880967]
[1735669930992,7.90805141,196.16,196.07,12.52880967]
[1735669931292,12.52880967,196.1,196.03,18.74570967]
[1735669931504,1.5953,196.14,196.04,12.52880967]
[1735669931505,12.52880967,196.12,196.04,12.52880967]
[1735669931718,12.52880967,196.12,196.05,12.52880967]
[1735669932731,12.52880967,196.12,196.04,12.52880967]
[1735669933106,1.5953,196.14,196.04,12.52880967]
[1735669933107,12.52880967,196.11,196.04,12.52880967]
[1735669933418,12.52880967,196.1,196.01,1.5927]
[1735669933607,1.5953,196.14,196.01,34.12150967]
[1735669933608,12.52880967,196.09,196.01,34.12150967]
[1735669934511,12.52880967,196.08,196.01,34.12150967]
[1735669934715,12.52880967,196.07,196.01,20.0]
[1735669935019,12.52880967,196.07,195.99,12.52880967]
[1735669935515,12.52880967,196.07,196.0,12.52880967]
[1735669935908,12.52880967,196.07,195.99,12.52880967]
[1735669936818,12.52880967,196.07,196.0,12.52880967]
[1735669937012,12.52880967,196.08,196.01,12.52880967]
[1735669937720,12.52880967,196.07,196.0,12.52880967]
[1735669938613,12.52880967,196.08,196.01,12.52880967]
[1735669938816,12.52880967,196.07,196.0,12.52880967]
[1735669939823,12.52880967,196.09,196.01,12.52880967]
[1735669940023,12.52880967,196.1,196.02,12.52880967]
[1735669940220,12.52880967,196.1,196.03,12.52880967]
[1735669940729,12.52880967,196.1,196.02,32.52880967]
[1735669941645,12.52880967,196.05,195.98,18.70420967]
[1735669941805,1.5953,196.14,196.02,12.52880967]
[1735669941998,12.52880967,196.12,196.05,12.52880967]
[1735669943722,1.5953,196.14,196.07,12.52880967]
[1735669943928,12.52880967,196.13,196.06,12.52880967]
[1735669944519,14.12410967,196.14,196.07,12.52880967]
[1735669944722,1.5953,196.14,196.07,12.52880967]
[1735669944938,12.52880967,196.17,196.1,12.52880967]
[1735669945730,12.52880967,196.18,196.11,12.52880967]
[1735669946907,12.52880967,196.18,196.1,12.52880967]
[1735669947108,12.52880967,196.15,196.08,12.52880967]
[1735669947721,12.52880967,196.13,196.06,12.52880967]
[1735669947928,12.7405,196.23,196.12,12.52880967]
[1735669948125,12.52880967,196.21,196.14,12.52880967]
[1735669948328,12.52880967,196.2,196.13,12.52880967]
[1735669948636,5.0,196.25,196.14,12.52880967]
[1735669948637,12.52880967,196.21,196.14,12.52880967]
[1735669950420,12.52880967,196.21,196.13,12.52880967]
[1735669950616,12.52880967,196.2,196.13,12.52880967]
[1735669951313,12.52880967,196.21,196.14,12.52880967]
[1735669951516,12.52880967,196.23,196.16,12.52880967]
[1735669952618,12.52880967,196.22,196.15,12.52880967]
[1735669953843,12.52880967,196.21,196.14,12.52880967]
[1735669954235,12.52880967,196.22,196.14,12.52880967]
[1735669954544,12.52880967,196.21,196.14,12.52880967]
[1735669954940,12.52880967,196.22,196.14,12.52880967]
[1735669955936,12.52880967,196.21,196.14,12.52880967]
[1735669956136,12.52880967,196.2,196.13,12.52880967]
[1735669956627,12.52880967,196.24,196.17,12.52880967]
[1735669958050,12.52880967,196.24,196.16,12.52880967]
[1735669958644,12.52880967,196.23,196.16,12.52880967]
[1735669958851,12.52880967,196.24,196.16,12.52880967]
[1735669959044,12.52880967,196.23,196.16,12.52880967]
[1735669959937,12.52880967,196.24,196.16,12.52880967]
[1735669961948,12.52880967,196.23,196.16,12.52880967]
[1735669963732,12.52880967,196.22,196.14,36.30569367]
[1735669964038,12.52880967,196.21,196.14,36.30569367]
[1735669964233,12.52880967,196.21,196.13,14.16170967]
[1735669964455,12.52880967,196.18,196.11,12.52880967]
[1735669964650,12.52880967,196.17,196.1,19.12480967]
[1735669964842,12.52880967,196.16,196.1,6.596]
[1735669965041,12.52880967,196.16,196.09,14.09800967]
[1735669965762,12.52880967,196.17,196.1,12.52880967]
[1735669966332,12.52880967,196.18,196.11,12.52880967]
[1735669966546,12.52880967,196.19,196.12,12.52880967]
[1735669967656,12.52880967,196.18,196.11,12.52880967]
[1735669968031,12.52880967,196.18,196.1,36.30569367]
[1735669968253,12.52880967,196.18,196.1,12.52880967]
[1735669968459,12.52880967,196.17,196.09,34.09800967]
[1735669968644,12.52880967,196.17,196.1,12.52880967]
[1735669969439,12.52880967,196.16,196.09,21.5692]
[1735669969637,12.52880967,196.16,196.09,34.09800967]
[1735669970857,12.52880967,196.17,196.1,12.52880967]
[1735669971158,12.52880967,196.17,196.09,34.09800967]
[1735669971336,12.52880967,196.16,196.09,34.09800967]
[1735669971855,12.52880967,196.14,196.07,12.52880967]
[1735669973374,12.52880967,196.12,196.05,18.82430967]
[1735669973663,12.52880967,196.06,196.0,7.8647]
[1735669973874,12.52880967,196.05,196.0,7.8647]
[1735669974043,20.0,196.14,196.01,23.776884]
[1735669974248,12.52880967,196.1,196.01,23.776884]
[1735669974449,12.52880967,196.1,196.03,12.52880967]
[1735669974643,12.744,196.17,196.01,23.776884]
[1735669974644,12.52880967,196.11,196.04,12.52880967]
[1735669977252,12.52880967,196.12,196.05,12.52880967]
[1735669977871,1.5797,196.18,196.07,12.52880967]
[1735669977872,12.52880967,196.14,196.07,12.52880967]
[1735669978454,12.52880967,196.13,196.07,20.0]
[1735669978672,12.52880967,196.12,196.07,20.0]
[1735669979180,1.5797,196.18,196.08,12.52880967]
[1735669979353,12.52880967,196.14,196.07,20.0]
[1735669980372,12.52880967,196.13,196.07,20.0]
[1735669980681,12.52880967,196.12,196.07,20.0]
[1735669980985,12.52880967,196.13,196.07,20.0]
[1735669982086,12.52880967,196.12,196.04,36.30569367]
[1735669982381,12.52880967,196.12,196.05,12.52880967]
[1735669982951,12.52880967,196.1,196.03,32.52880967]
[1735669983149,12.52880967,196.09,196.02,12.52880967]
[1735669983883,12.52880967,196.08,196.01,12.52880967]
[1735669985352,12.52880967,196.09,196.02,12.52880967]
[1735669986098,12.52880967,196.09,196.01,12.52880967]
[1735669986594,12.52880967,196.08,196.01,12.52880967]
[1735669986900,12.52880967,196.07,196.0,20.39350967]
[1735669987068,12.52880967,196.08,196.0,20.39350967]
[1735669987267,12.52880967,196.08,196.01,12.52880967]